fUSD/lending_fUSD_20260322
["ID","MTS","AMOUNT","RATE_DAILY","PERIOD"]
[408701990,1774150240517,-500.0,0.00015899,2]
[408701991,1774150240525,-500.0,0.00015899,2]
[408701992,1774150240534,-500.0,0.00015899,2]
[408701993,1774150240543,-500.0,0.00015899,2]
[408701994,1774150240551,-500.0,0.00015899,2]
[408701995,1774150240561,-500.0,0.00015899,2]
[408701996,1774150240578,-500.0,0.00015899,2]
[408701997,1774150240589,-500.0,0.00015899,2]
[408701998,1774150240599,-500.0,0.00015899,2]
[408701999,1774150240609,-500.0,0.00015899,2]
[408702001,1774150240619,-500.0,0.00015899,2]
[408702002,1774150240628,-500.0,0.00015899,2]
[408702003,1774150240638,-500.0,0.00015899,2]
[408702004,1774150240648,-500.0,0.00015899,2]
[408702005,1774150240658,-500.0,0.00015899,2]
[408702006,1774150240667,-500.0,0.00015899,2]
[408702008,1774150240679,-500.0,0.00015899,2]
[408702010,1774150240689,-500.0,0.00015899,2]
[408702012,1774150240699,-500.0,0.00015899,2]
[408702014,1774150240709,-500.0,0.00015899,2]
[408702015,1774150240718,-500.0,0.00015899,2]
[408702017,1774150240727,-500.0,0.00015899,2]
[408702019,1774150240737,-500.0,0.00015899,2]
[408702021,1774150240746,-500.0,0.00015899,2]
[408702023,1774150240755,-500.0,0.00015899,2]
[408702025,1774150240764,-500.0,0.00015899,2]
[408702027,1774150240774,-500.0,0.00015899,2]
[408702029,1774150240783,-500.0,0.00015899,2]
[408702031,1774150240793,-500.0,0.00015899,2]
[408702032,1774150240803,-500.0,0.00015899,2]
[408702033,1774150240812,-500.0,0.00015899,2]
[408702034,1774150240822,-500.0,0.00015899,2]
[408702035,1774150240832,-534.42438336,0.00015899,2]
[408702036,1774150240841,-500.0,0.00015899,2]
[408702037,1774150240850,-500.0,0.00015899,2]
[408702038,1774150240861,-367.95893957,0.00015899,2]
[408702039,1774150240870,-500.0,0.00015899,2]
[408702040,1774150240880,-175.19866784,0.00015899,2]
[408702041,1774150240890,-500.0,0.00015899,2]
[408702042,1774150240900,-484.49271011,0.00015899,2]
[408702043,1774150240910,-179.46988562,0.00015899,2]
[408702045,1774150240920,-500.0,0.00015899,2]
[408702047,1774150240931,-317.55509761,0.00015899,2]
[408702049,1774150240940,-500.0,0.00015899,2]
[408702051,1774150240950,-465.08474252,0.00015899,2]
[408702052,1774150240963,-500.0,0.00015899,2]
[408702053,1774150240973,-500.0,0.00015899,2]
[408702054,1774150240983,-500.0,0.00015899,2]
[408702055,1774150240993,-242.76501849,0.00015899,2]
[408702056,1774150241002,-500.0,0.00015899,2]
[408702057,1774150241012,-500.0,0.00015899,2]
[408702058,1774150241021,-500.0,0.00015899,2]
[408702059,1774150241031,-223.96,0.00015899,2]
[408702060,1774150241041,-698276.0667,0.000159,2]
[408702061,1774150241051,-226.1122,0.000159,2]
[408702062,1774150241060,-163.51280097,0.000159,2]
[408702063,1774150241070,-994.5642575,0.000159,2]
[408702064,1774150241079,-391.96729479,0.000159,2]
[408702065,1774150241089,-441.23266206,0.000159,2]
[408702066,1774150241098,-28440.35257301,0.000159,2]
[408702067,1774150241108,-500.0,0.00015973,2]
[408702068,1774150241118,-500.0,0.00015973,2]
[408702069,1774150241127,-500.72748005,0.00015973,2]
[408702070,1774150241137,-500.0,0.00015973,2]
[408702071,1774150241147,-500.55967201,0.00015973,2]
[408702072,1774150241156,-501.22701546,0.00015973,2]
[408702073,1774150241166,-500.0,0.00015973,2]
[408702074,1774150241177,-501.29739863,0.00015973,2]
[408702075,1774150241187,-500.0,0.00015973,2]
[408702076,1774150241196,-500.0,0.00015973,2]
[408702077,1774150241206,-500.0,0.00015973,2]
[408702078,1774150241216,-500.44177829,0.00015973,2]
[408702079,1774150241225,-500.0,0.00015973,2]
[408702080,1774150241235,-500.0,0.00015973,2]
[408702081,1774150241245,-390.12270077,0.00015973,2]
[408702082,1774150241255,-500.0,0.00015973,2]
[408702083,1774150241267,-500.0,0.00015973,2]
[408702084,1774150241276,-218.19919069,0.00015975,2]
[408702085,1774150241286,-2658.0,0.00015985,5]
[408702086,1774150241297,-2131.0,0.00015985,5]
[408702087,1774150241307,-16269.06550081,0.00015985,2]
[408702088,1774150241340,-750.0,0.00015985,2]
[408702089,1774150241368,-872.14,0.00015985,2]
[408702091,1774150243112,-154.4686056,0.00015216,2]
[408702092,1774150243121,-655.27655769,0.00015833,2]
[408702093,1774150245693,-1682.70468906,0.00015833,2]
[408702094,1774150245703,-500.0,0.00015985,2]
[408702095,1774150245713,-4620.82861694,0.00015985,2]
[408702096,1774150245855,-7350.20269681,0.00015985,2]
[408702136,1774150268320,3267.094528,7.945e-05,2]
[408702151,1774151226152,-172.18,0.00013839,2]
[408702152,1774151226171,-3240.0,0.00013866,2]
[408702153,1774151226191,-300.0,0.00013938,2]
[408702154,1774151226210,-166.5946015,0.0001395,2]
[408702155,1774151226230,-524.0,0.00014,2]
[408702156,1774151226251,-524.0,0.00014,2]
[408702157,1774151226270,-302.87275784,0.00014007,2]
[408702158,1774151226290,-195.0,0.00014007,2]
[408702159,1774151226311,-250.0,0.00014013,2]
[408702160,1774151226330,-252.31247552,0.00014038,2]
[408702161,1774151226352,-195.0,0.0001404,2]
[408702162,1774151226372,-500.0,0.0001405,2]
[408702163,1774151226393,-1200.0,0.00014096,2]
[408702164,1774151226413,-3333.96587001,0.00014097,2]
[408702165,1774151381987,1441.58,7.091e-05,2]
[408702166,1774151382183,1441.58,7.464e-05,2]
[408702167,1774151382389,1441.58,7.837e-05,2]
[408702168,1774151382582,675.27,8.21e-05,2]
[408702169,1774151382603,766.31,8.21e-05,2]
[408702170,1774151382786,1441.58,8.584e-05,2]
[408702171,1774151382979,1441.58,8.957e-05,2]
[408702172,1774151383339,1350.54,9.33e-05,2]
[408702173,1774151383359,91.04,9.33e-05,2]
[408702174,1774151383732,1441.58,9.703e-05,2]
[408702175,1774151383764,1441.58,0.00010077,2]
[408702176,1774151383932,1441.58,0.0001045,2]
[408702177,1774151384124,584.23,0.00010823,2]
[408702178,1774151384149,857.35,0.00010823,2]
[408702179,1774151384355,1441.58,0.00011196,2]
[408702180,1774151384524,1441.58,0.00011569,2]
[408702181,1774151384701,1259.5,0.00011943,2]
[408702182,1774151384721,182.08,0.00011943,2]
[408702183,1774151384898,1441.58,0.00012316,2]
[408702184,1774151415178,166.5946015,0.00012634,2]
[408702188,1774151431901,-151.0,0.00012671,2]
[408702189,1774151431910,-161.0,0.00012671,2]
[408702190,1774151431920,-161.0,0.00012671,2]
[408702191,1774151431931,-161.0,0.00012671,2]
[408702192,1774151431942,-161.0,0.00012671,2]
[408702193,1774151431951,-217.09870358,0.00012689,2]
[408702194,1774151431972,-1224.48129642,0.00012689,2]
[408702195,1774151431983,-250.0,0.00012734,2]
[408702196,1774151431993,-151.0,0.00012797,3]
[408702197,1774151432003,-1441.58,0.00013062,2]
[408702198,1774151432012,-161.0,0.00013238,3]
[408702199,1774151432022,-1441.58,0.00013435,2]
[408702200,1774151432031,-80.35864358,0.00013536,2]
[408702201,1774151432045,-169.64135642,0.00013536,2]
[408702202,1774151432055,-729.96443174,0.00013808,2]
[408702203,1774151432067,-470.03556826,0.00013808,2]
[408702204,1774151432077,-1441.58,0.00013809,2]
[408702205,1774151432087,-250.0,0.00013938,2]
[408702206,1774151432097,-1224.385715,0.00013938,2]
[408702207,1774151432107,-300.0,0.00013938,2]
[408702209,1774151432118,-406.42,0.00013964,2]
[408702210,1774151432128,-300.0,0.00013999,2]
[408702211,1774151432138,-300.0,0.00013999,2]
[408702212,1774151432148,-524.0,0.00014,2]
[408702213,1774151432158,-2035.31412999,0.00014097,2]
[408702214,1774151432168,-4460.6691,0.00014121,2]
[408702216,1774151432177,-1441.58,0.00014182,2]
[408702217,1774151432187,-166.66,0.00014206,2]
[408702218,1774151432197,-7837.96,0.00014217,2]
[408702219,1774151432207,-3658.36,0.00014252,2]
[408702220,1774151432216,-618.0,0.00014267,2]
[408702221,1774151432226,-1546.1702,0.00014277,2]
[408702222,1774151432237,-166.5946015,0.00014277,2]
[408702223,1774151432246,-258.5,0.00014283,2]
[408702224,1774151432255,-7811.07,0.00014299,2]
[408702225,1774151432263,-8579.42,0.00014321,2]
[408702226,1774151432272,-585.80340637,0.00014337,2]
[408702227,1774151432282,-5507.10292285,0.0001434,2]
[408702228,1774151432292,-10001.22,0.00014377,2]
[408702229,1774151432302,-186.636452,0.0001438,2]
[408702230,1774151432312,-1012.77724963,0.0001439,2]
[408702231,1774151432323,-150.0,0.00014504,2]
[408702232,1774151432333,-166.66,0.00014505,2]
[408702233,1774151432344,-200.0,0.00014557,2]
[408702234,1774151432356,-161.0,0.00014561,3]
[408702235,1774151432365,-896.0,0.00014637,2]
[408702236,1774151432375,-150.0,0.00014662,2]
[408702237,1774151432384,-406.42,0.00014662,2]
[408702238,1774151432394,-2000.0,0.000147,2]
[408702239,1774151432403,-413.0,0.00014718,2]
[408702240,1774151432412,-2247.0,0.0001472,2]
[408702241,1774151432423,-9572.91,0.00014748,2]
[408702242,1774151432433,-1787.1224931,0.00014756,2]
[408702243,1774151432446,-2903.65,0.00014774,2]
[408702244,1774151432455,-166.66,0.00014804,2]
[408702245,1774151432465,-413.0,0.00014943,2]
[408702246,1774151432475,-200.0,0.00014954,2]
[408702247,1774151432485,-171.82,0.00014999,2]
[408702248,1774151432493,-500.0,0.00015,2]
[408702249,1774151432507,-500.0,0.00015,2]
[408702250,1774151432517,-500.0,0.00015,2]
[408702251,1774151432530,-500.0,0.00015,2]
[408702252,1774151432540,-325.69725917,0.00015015,2]
[408702253,1774151432550,-168.0,0.00015038,2]
[408702254,1774151432559,-166.66,0.00015104,2]
[408702255,1774151432570,-168.0,0.00015152,2]
[408702256,1774151432580,-1680.0,0.00015188,2]
[408702257,1774151432590,-10000.0,0.00015205,2]
[408702258,1774151432600,-172.18,0.00015223,2]
[408702259,1774151432610,-160.0,0.00015286,2]
[408702260,1774151432620,-168.0,0.00015287,2]
[408702261,1774151432629,-5000.0,0.00015345,2]
[408702262,1774151432639,-406.42,0.0001536,2]
[408702263,1774151432648,-823.0,0.0001536,2]
[408702264,1774151432658,-1568.0,0.0001536,2]
[408702265,1774151432667,-168.0,0.00015382,2]
[408702266,1774151432677,-166.66,0.00015403,2]
[408702267,1774151432687,-979.16666667,0.00015437,2]
[408702268,1774151432696,-168.0,0.00015502,2]
[408702269,1774151432706,-4000.0,0.00015507,2]
[408702270,1774151432716,-354.71,0.00015531,3]
[408702271,1774151432726,-200.0,0.00015541,2]
[408702272,1774151432736,-200.0,0.00015541,2]
[408702273,1774151432746,-200.0,0.00015541,2]
[408702274,1774151432756,-200.0,0.00015541,2]
[408702275,1774151432766,-200.0,0.00015541,2]
[408702276,1774151432775,-200.0,0.00015541,2]
[408702277,1774151432785,-200.0,0.00015541,2]
[408702278,1774151432795,-200.0,0.00015541,2]
[408702279,1774151432804,-200.0,0.00015541,2]
[408702280,1774151432814,-200.0,0.00015541,2]
[408702281,1774151432823,-200.0,0.00015541,2]
[408702282,1774151432833,-200.0,0.00015541,2]
[408702283,1774151432843,-200.0,0.00015541,2]
[408702284,1774151432853,-200.0,0.00015541,2]
[408702285,1774151432863,-200.0,0.00015541,2]
[408702286,1774151432872,-200.0,0.00015541,2]
[408702287,1774151432882,-200.0,0.00015541,2]
[408702288,1774151432896,-200.0,0.00015541,2]
[408702289,1774151432906,-200.0,0.00015541,2]
[408702290,1774151432917,-209.863504,0.00015541,2]
[408702291,1774151432928,-234.281665,0.00015586,7]
[408702292,1774151432939,-255.0,0.00015621,2]
[408702293,1774151432949,-182.650276,0.0001568,7]
[408702294,1774151432959,-160.0,0.0001568,7]
[408702295,1774151432968,-160.0,0.0001568,7]
[408702296,1774151432978,-166.66,0.00015702,2]
[408702297,1774151432988,-1994.85741844,0.00015804,2]
[408702298,1774151432998,-5000.0,0.00015804,2]
[408702299,1774151433008,-177.202,0.00015811,2]
[408702300,1774151433018,-2895.766,0.00015811,2]
[408702301,1774151433027,-1994.85741842,0.00015815,2]
[408702302,1774151433037,-1994.85741842,0.00015825,2]
[408702303,1774151433047,-1994.85741842,0.00015836,2]
[408702304,1774151433058,-1994.85741842,0.00015847,2]
[408702305,1774151433067,-1994.85741842,0.00015857,2]
[408702306,1774151433078,-1994.85741842,0.00015868,2]
[408702307,1774151433089,-500.0,0.0001587,2]
[408702308,1774151433104,-1994.85741842,0.00015879,2]
[408702309,1774151433114,-161.0,0.00015884,3]
[408702310,1774151433124,-1994.85741842,0.00015889,2]
[408702311,1774151433135,-4000.0,0.00015895,2]
[408702312,1774151433145,-121.27310247,0.000159,2]
[408702313,1774151433158,-315.31506907,0.000159,2]
[408702314,1774151433170,-1305.38,0.000159,2]
[408702315,1774151433187,-252.88924688,0.000159,2]
[408702316,1774151433198,-170.66604151,0.00015903,2]
[408702317,1774151437977,-367.0,0.00014152,2]
[408702318,1774151438083,-603.22941727,0.00014152,2]
[408702319,1774151438136,-10494.11055449,0.00014152,2]
[408702320,1774151438147,-3015.00009,0.00014152,2]
[408702321,1774151438190,-14722.46616552,0.00014152,2]
[408702322,1774151438203,-8078.55397272,0.00014152,2]
[408702323,1774151438213,-329.33395849,0.00015903,2]
[408702324,1774151438223,-500.0,0.00015903,2]
[408702325,1774151438232,-222.28856833,0.00015903,2]
[408702326,1774151438242,-500.0,0.00015903,2]
[408702327,1774151438251,-500.0,0.00015903,2]
[408702328,1774151438261,-575.55931976,0.00015903,2]
[408702329,1774151438270,-500.0,0.00015903,2]
[408702330,1774151438280,-219.93551295,0.00015903,2]
[408702331,1774151438289,-500.0,0.00015903,2]
[408702332,1774151438298,-500.0,0.00015903,2]
[408702333,1774151438307,-500.0,0.00015903,2]
[408702334,1774151438317,-457.26736981,0.00015903,2]
[408702335,1774151438326,-500.0,0.00015903,2]
[408702336,1774151438335,-223.97,0.00015903,2]
[408702337,1774151438344,-516.55182021,0.00015903,2]
[408702339,1774151438354,-512.08786411,0.00015903,2]
[408702341,1774151438364,-517.2817596,0.00015903,2]
[408702343,1774151438373,-509.26929884,0.00015903,2]
[408702345,1774151438382,-3553.53769817,0.00015904,2]
[408702347,1774151438394,-981.56,0.00015904,2]
[408702349,1774151438406,-670.61863171,0.00015904,2]
[408702846,1774151443284,-4810.27,0.00015904,2]
[408702852,1774151443338,-964.7243245,0.00015904,2]
[408703155,1774151446383,-3057.61203432,0.00015904,2]
[408703157,1774151446393,-9307.3837147,0.00015904,2]
[408703159,1774151446403,-16922.37648257,0.00015904,2]
[408703195,1774151446803,-2999.9994047,0.00015904,2]
[408703306,1774151764351,171.55,0.00011834,2]
[408703347,1774152161025,841.14,0.00012671,2]
[408703356,1774152451315,-524.0,0.00014,2]
[408703357,1774152451336,-368.89,0.00014131,2]
[408703358,1774152451356,-1649.03,0.00014157,2]
[408703359,1774152451376,-925.41,0.00014196,2]
[408703360,1774152451396,-279.94172798,0.00014198,2]
[408703363,1774152632116,-276.39732975,0.00014099,2]
[408703364,1774152632126,-427.32969977,0.00014177,2]
[408703365,1774152632137,-306.93605132,0.00014177,2]
[408703366,1774152632170,-1722.94993468,0.00014177,2]
[408703367,1774152632229,-400.0,0.00014177,2]
[408703368,1774152632240,-3710.00000002,0.00014177,2]
[408703369,1774152632251,-258.87161287,0.00014177,2]
[408703432,1774152640422,-691449.97940134,0.00014177,2]
[408703433,1774152640432,-300.0,0.00014198,2]
[408703434,1774152640442,-300.0,0.00014198,2]
[408703435,1774152640452,-1200.0,0.00014198,2]
[408703436,1774152640461,-19139.5704,0.00014199,2]
[408703437,1774152640471,-276.39732974,0.000142,2]
[408703438,1774152640480,-150.0,0.00014276,2]
[408703439,1774152640490,-276.39732974,0.000143,2]
[408703440,1774152640499,-163.0,0.000144,2]
[408703441,1774152640509,-166.66,0.0001453,2]
[408703442,1774152640518,-554.74670469,0.00014568,2]
[408703443,1774152640528,-151.0,0.00014602,2]
[408703444,1774152640537,-63658.26265508,0.00014605,2]
[408703445,1774152640547,-226.1122,0.00014668,2]
[408703446,1774152640556,-1500.0,0.00014707,2]
[408703447,1774152640566,-554.74670467,0.00014716,2]
[408703448,1774152640575,-9922.97,0.00014751,2]
[408703449,1774152640587,-500.0,0.00014756,2]
[408703450,1774152640598,-6805.56,0.00014768,2]
[408703451,1774152640609,-554.74670467,0.00014864,2]
[408703452,1774152640619,-442.75882872,0.0001497,2]
[408703453,1774152640629,-250.0,0.00015,2]
[408703454,1774152640638,-500.0,0.00015,2]
[408703455,1774152640647,-507.20464711,0.00015,2]
[408703456,1774152640657,-166.66,0.00015009,2]
[408703457,1774152640666,-554.74670467,0.00015012,2]
[408703458,1774152640676,-415.0,0.00015017,2]
[408703459,1774152640685,-1568.0,0.0001504,2]
[408703460,1774152640695,-2403.0,0.0001504,2]
[408703461,1774152640705,-439.0,0.00015096,2]
[408703462,1774152640714,-206.8,0.000151,2]
[408703463,1774152640724,-554.74670467,0.0001516,2]
[408703464,1774152640734,-1525.54217947,0.00015178,2]
[408703465,1774152640750,-4796.85532324,0.00015178,2]
[408703466,1774152640765,-1019.64210675,0.00015178,2]
[408703467,1774152640900,-84.73463329,0.00015178,2]
[408703468,1774152640909,-251.09352804,0.00015178,2]
[408703469,1774152640919,-989.98482201,0.00015192,2]
[408703470,1774152640930,-253.32743082,0.000152,2]
[408703471,1774152640940,-681.6755,0.00015222,2]
[408703472,1774152640951,-481.5567786,0.00015222,2]
[408703473,1774152640964,-4518.4432214,0.00015222,2]
[408703474,1774152640974,-712.29450173,0.00015225,2]
[408703475,1774152640985,-1519.76904609,0.0001523,2]
[408703481,1774152643321,-1387.49991011,0.0001523,2]
[408703482,1774152643534,-522.5563823,0.0001523,2]
[408703483,1774152643587,-531.6,0.0001523,2]
[408703487,1774152646109,-9186.07056425,0.0001523,2]
[408703488,1774152646530,-686.69924265,0.0001523,2]
[408703493,1774152650246,2843.18,0.00012029,2]
[408703495,1774153019465,924.0,0.00012671,2]
[408703496,1774153037760,151.0,0.00012671,2]
[408703497,1774153037938,200.0,0.00012671,2]
[408703498,1774153038381,151.0,0.00012671,2]
[408703499,1774153039227,151.0,0.00012671,2]
[408703500,1774153039803,151.0,0.00012671,2]
[408703501,1774153040401,151.0,0.00012671,2]
[408703502,1774153041811,151.0,0.00012671,2]
[408703503,1774153042452,151.0,0.00012671,2]
[408703504,1774153043044,151.0,0.00012671,2]
[408703505,1774153043641,151.0,0.00012671,2]
[408703506,1774153044250,151.0,0.00012671,2]
[408703507,1774153044855,151.0,0.00012671,2]
[408703508,1774153045463,151.0,0.00012671,2]
[408703509,1774153046316,151.0,0.00012671,2]
[408703510,1774153046670,151.0,0.00012671,2]
[408703511,1774153047434,151.0,0.00012671,2]
[408703512,1774153048054,151.0,0.00012671,2]
[408703513,1774153048815,153.0056866,0.00012671,2]
[408703514,1774153337232,151.0,0.00012671,2]
[408703515,1774153337834,151.0,0.00012671,2]
[408703516,1774153338446,151.0,0.00012671,2]
[408703517,1774153344900,151.0,0.00012671,2]
[408703518,1774153345557,151.0,0.00012671,2]
[408703519,1774153346269,151.0,0.00012671,2]
[408703520,1774153346856,151.0,0.00012671,2]
[408703521,1774153347513,151.0,0.00012671,2]
[408703522,1774153348178,99.0043134,0.00012671,2]
[408703523,1774153348201,51.9956866,0.00012671,2]
[408703524,1774153348783,151.0,0.00012671,2]
[408703525,1774153349391,151.0,0.00012671,2]
[408703526,1774153350094,151.0,0.00012671,2]
[408703527,1774153350705,151.0,0.00012671,2]
[408703528,1774153351309,151.0,0.00012671,2]
[408703529,1774153351915,151.0,0.00012671,2]
[408703530,1774153352635,151.0,0.00012671,2]
[408703531,1774153353146,151.0,0.00012671,2]
[408703532,1774153353752,151.0,0.00012671,2]
[408703533,1774153354381,247.61576494,0.00012671,2]
[408703534,1774153512513,-163.0,0.00012671,2]
[408703535,1774153512542,-174.0,0.00012671,2]
[408703536,1774153567014,174.0,0.00012671,2]
[408703537,1774153583199,5433.75451938,8e-05,2]
[408703540,1774153616869,172.1892,0.00012571,2]
[408703541,1774153626263,175.0,0.00012671,2]
[408703542,1774153631123,-166.66,0.00012919,2]
[408703543,1774153631149,-166.66,0.00013191,2]
[408703544,1774153631374,-500.0,0.00013217,2]
[408703545,1774153631400,-803.65,0.00013217,2]
[408703546,1774153631423,-1600.0,0.00013279,2]
[408703547,1774153631444,-207.29799731,0.00013363,2]
[408703548,1774153631466,-166.66,0.00013463,2]
[408703549,1774153631486,-6204.107,0.00013548,2]
[408703550,1774153631506,-4729.77,0.00013617,2]
[408703551,1774153631528,-1200.0,0.00013628,2]
[408703552,1774153631548,-2000.0,0.00013629,2]
[408703553,1774153631569,-166.66,0.00013735,2]
[408703554,1774153631590,-195.0,0.00013938,2]
[408703555,1774153631610,-250.0,0.00013938,2]
[408703556,1774153631634,-250.0,0.00013938,2]
[408703557,1774153631654,-207.2979973,0.00013977,2]
[408703558,1774153631681,-550.29432466,0.00013986,2]
[408703559,1774153686469,175.0,0.00012671,2]
[408703563,1774153737002,10000.01,9.5e-05,3]
[408703564,1774153737024,10000.01,9.5e-05,3]
[408703565,1774153737046,2239.5587128,9.5e-05,3]
[408703573,1774153831298,-175.0,0.00012671,2]
[408703575,1774153831307,-163.0,0.00012671,2]
[408703577,1774153831317,-1200.0,0.00013975,2]
[408703578,1774153831326,-39847.0805,0.00013976,2]
[408703579,1774153831335,-4033.62841716,0.00013977,2]
[408703580,1774153831344,-1335.89567534,0.00013986,2]
[408703581,1774153831354,-524.0,0.00014,2]
[408703582,1774153831363,-166.66,0.00014007,2]
[408703583,1774153831373,-209.65985904,0.00014067,2]
[408703584,1774153831383,-153.53212712,0.00014067,2]
[408703585,1774153831393,-150.0,0.00014075,2]
[408703586,1774153831403,-71321.7963,0.00014076,2]
[408703587,1774153831412,-2372.8352,0.00014077,2]
[408703588,1774153831422,-2500.0,0.00014077,2]
[408703589,1774153831432,-1412.24313025,0.00014077,2]
[408703590,1774153831441,-165.44,0.00014135,2]
[408703591,1774153831451,-4528.0372,0.00014137,2]
[408703592,1774153831461,-500.0,0.00014164,2]
[408703593,1774153831470,-379.18468401,0.00014173,2]
[408703594,1774153831480,-500.0,0.00014173,2]
[408703595,1774153831489,-500.0,0.00014173,2]
[408703596,1774153831498,-500.22141638,0.00014173,2]
[408703597,1774153831508,-500.0,0.00014173,2]
[408703598,1774153831518,-363.59094445,0.00014176,2]
[408703599,1774153831528,-261.29,0.00014176,2]
[408703600,1774153831537,-200.0,0.00014176,2]
[408703601,1774153831547,-200.0,0.00014176,2]
[408703602,1774153831556,-200.0,0.00014176,2]
[408703603,1774153831566,-200.0,0.00014176,2]
[408703604,1774153831576,-200.0,0.00014176,2]
[408703605,1774153831586,-200.0,0.00014176,2]
[408703606,1774153831596,-200.0,0.00014176,2]
[408703607,1774153831605,-200.0,0.00014176,2]
[408703608,1774153831615,-200.0,0.00014176,2]
[408703609,1774153831624,-200.0,0.00014176,2]
[408703610,1774153831633,-6547.1402899,0.00014269,2]
[408703611,1774153831643,-3649.5973675,0.00014269,2]
[408703612,1774153831652,-166.66,0.00014279,2]
[408703613,1774153831662,-1412.24313016,0.0001428,2]
[408703615,1774153831671,-500.0,0.00014356,2]
[408703618,1774153831682,-700.0,0.00014356,2]
[408703620,1774153831691,-700.0,0.00014356,2]
[408703622,1774153831701,-161.0,0.000144,2]
[408703623,1774153831711,-261.29,0.0001445,2]
[408703624,1774153831720,-200.0,0.00014478,2]
[408703625,1774153831730,-1412.24313016,0.00014482,2]
[408703626,1774153831739,-299.99,0.00014504,2]
[408703627,1774153831749,-150.99,0.00014504,2]
[408703628,1774153831758,-21935.5591381,0.00014628,2]
[408703629,1774153831768,-500.0,0.00014658,2]
[408703630,1774153831777,-3057.59379556,0.00014668,2]
[408703631,1774153831789,-3600.42431067,0.00014668,2]
[408703632,1774153831800,-818.42572312,0.00014668,2]
[408703633,1774153831815,-459.7385134,0.00014668,2]
[408703634,1774153831827,-654.57962453,0.00014668,2]
[408703635,1774153831846,-1695.65443272,0.00014668,2]
[408703636,1774153831855,-1412.24313016,0.00014685,2]
[408703637,1774153831865,-1000.0,0.00014721,2]
[408703638,1774153831874,-1001.94488973,0.00014721,2]
[408703639,1774153831883,-261.30101582,0.00014724,2]
[408703640,1774153831892,-1229.0,0.00014885,2]
[408703641,1774153831902,-1412.24313016,0.00014887,2]
[408703642,1774153831911,-1600.0,0.00014938,2]
[408703643,1774153831920,-537.56774408,0.0001497,2]
[408703644,1774153831929,-500.0,0.00014986,2]
[408703645,1774153831938,-250.0,0.00015,2]
[408703646,1774153831947,-161.0,0.0001504,2]
[408703647,1774153831956,-598.0,0.0001505,2]
[408703648,1774153831966,-900.0,0.00015068,2]
[408703649,1774153831976,-1412.24313016,0.0001509,2]
[408703650,1774153831985,-1215.1205075,0.0001513,2]
[408703651,1774153831994,-255.0,0.00015201,2]
[408703652,1774153832004,-2360.03,0.00015205,2]
[408703653,1774153832013,-168.0,0.00015209,2]
[408703654,1774153832023,-5000.0,0.00015222,2]
[408703655,1774153832032,-279.84827485,0.00015222,2]
[408703656,1774153832042,-168.0,0.00015226,2]
[408703657,1774153832051,-42810.66859609,0.0001523,2]
[408703658,1774153832062,-14078.17349737,0.0001523,2]
[408703659,1774153832073,-250.0,0.0001523,2]
[408703660,1774153832088,-1248.86929294,0.0001523,2]
[408703661,1774153832100,-3058.63601826,0.0001523,2]
[408703662,1774153832111,-393.653476,0.0001523,2]
[408703663,1774153832126,-471.84604647,0.0001523,2]
[408703667,1774153837360,-621.81156966,0.00013977,2]
[408703669,1774153837523,-1324.38048461,0.00013977,2]